fUST/lending_fUST_20250822
["ID","MTS","AMOUNT","RATE_DAILY","PERIOD"]
[380557903,1755808269845,-480.0,0.00022739,3]
[380557905,1755808269854,-763.78,0.00022739,3]
[380557907,1755808269864,-1230.62,0.00022739,3]
[380557909,1755808269873,-575.71,0.00022739,3]
[380557911,1755808269883,-480.0,0.00022739,3]
[380557913,1755808269892,-480.0,0.00022739,3]
[380557915,1755808269901,-480.0,0.00022739,3]
[380557917,1755808269910,-480.0,0.00022739,3]
[380557919,1755808269919,-979.98,0.00022739,3]
[380557921,1755808269929,-480.0,0.00022739,3]
[380557923,1755808269940,-502.39,0.00022739,3]
[380557925,1755808269949,-480.0,0.00022739,3]
[380557937,1755808270048,-2606.28,0.00022739,3]
[380557939,1755808270057,-480.0,0.00022739,3]
[380557940,1755808270066,-2231.79,0.00022739,3]
[380557942,1755808270076,-685.12,0.00022739,3]
[380557944,1755808270086,-947.83,0.00022739,3]
[380557946,1755808270095,-764.17,0.00022739,3]
[380557948,1755808270104,-704.07,0.00022739,3]
[380557950,1755808270114,-480.0,0.00022739,3]
[380557952,1755808270123,-905.55,0.00022739,3]
[380557954,1755808270132,-1859.19,0.00022739,3]
[380557956,1755808270141,-1348.71,0.00022739,3]
[380557958,1755808270150,-1068.04,0.00022739,3]
[380557960,1755808270159,-1092.9,0.00022739,3]
[380557962,1755808270168,-1639.18,0.00022739,3]
[380557964,1755808270178,-4632.7,0.00022739,3]
[380557966,1755808270189,-480.0,0.00022739,3]
[380557968,1755808270198,-871.0,0.00022739,3]
[380557970,1755808270207,-1839.51,0.00022739,3]
[380557972,1755808270217,-943.69,0.00022739,3]
[380557974,1755808270227,-1279.12,0.00022739,3]
[380557976,1755808270236,-500.19,0.00022739,3]
[380557978,1755808270245,-644.77,0.00022739,3]
[380557980,1755808270254,-7368.41,0.00022739,3]
[380557982,1755808270264,-904.57,0.00022739,3]
[380557984,1755808270273,-2226.97,0.00022739,3]
[380557986,1755808270283,-589.33,0.00022739,3]
[380557988,1755808270292,-2931.52,0.00022739,3]
[380557990,1755808270302,-1477.5,0.00022739,3]
[380557992,1755808270311,-3237.28,0.00022739,3]
[380557994,1755808270320,-1500.0,0.00022739,28]
[380557996,1755808270329,-1500.0,0.00022739,28]
[380557998,1755808270339,-1500.0,0.00022739,28]
[380558000,1755808270347,-1500.0,0.00022739,28]
[380558002,1755808270356,-1500.0,0.00022739,28]
[380558004,1755808270365,-1500.0,0.00022739,28]
[380558006,1755808270374,-414.277049,0.00022739,28]
[380558007,1755808270383,-2381.45,0.00022739,3]
[380558009,1755808270393,-548.56,0.00022739,3]
[380558011,1755808270402,-480.0,0.00022739,3]
[380558013,1755808270412,-7210.24,0.00022739,3]
[380558015,1755808270421,-480.0,0.00022739,3]
[380558017,1755808270432,-480.0,0.00022739,3]
[380558019,1755808270445,-494.32,0.00022739,3]
[380558021,1755808270455,-804.93,0.00022739,3]
[380558023,1755808270464,-685.15,0.00022739,3]
[380558025,1755808270473,-308.23,0.00022739,3]
[380558027,1755808270483,-1714.15,0.00022739,3]
[380558029,1755808270492,-480.0,0.00022739,3]
[380558031,1755808270501,-480.0,0.00022739,3]
[380558033,1755808270510,-2021.04,0.00022739,3]
[380558035,1755808270520,-4624.04,0.00022739,3]
[380558037,1755808270530,-697.43,0.00022739,3]
[380558039,1755808270540,-480.0,0.00022739,3]
[380558041,1755808270549,-850.67,0.00022739,3]
[380558043,1755808270558,-2191.48,0.00022739,3]
[380558045,1755808270567,-486.66,0.00022739,3]
[380558047,1755808270576,-676.79,0.00022739,3]
[380558049,1755808270585,-500.0,0.0002274,2]
[380558051,1755808270595,-955.0,0.0002274,2]
[380558053,1755808270604,-172.0,0.00022755,2]
[380558055,1755808270613,-3500.0,0.0002276,2]
[380558057,1755808270622,-3500.0,0.0002276,2]
[380558059,1755808270633,-1500.0,0.0002276,2]
[380558061,1755808270642,-587.0,0.00022765,2]
[380558063,1755808270651,-5000.0,0.00022779,2]
[380558065,1755808270660,-151.0,0.000228,6]
[380558067,1755808270669,-150.0,0.00022846,2]
[380558069,1755808270679,-560.0,0.00022852,2]
[380558071,1755808270689,-2500.0,0.00022864,2]
[380558073,1755808270697,-160.9016298,0.00022966,2]
[380558075,1755808270707,-580.0375729,0.00022966,2]
[380558076,1755808270716,-160.369764,0.00022966,2]
[380558078,1755808270725,-2351.0,0.00022986,2]
[380558080,1755808270735,-160.0,0.00023,3]
[380558082,1755808270744,-216.95272161,0.00023,3]
[380558084,1755808270753,-232.28399145,0.00023,3]
[380558086,1755808270762,-160.0,0.00023,3]
[380558088,1755808270772,-160.0,0.00023,3]
[380558090,1755808270781,-160.0,0.00023,3]
[380558092,1755808270790,-844.19128999,0.00023,3]
[380558094,1755808270800,-160.0,0.00023,3]
[380558096,1755808270810,-956.81,0.00023013,3]
[380558098,1755808270819,-480.0,0.00023013,3]
[380558100,1755808270830,-968.44,0.00023013,3]
[380558102,1755808270840,-969.14,0.00023013,3]
[380558104,1755808270849,-480.0,0.00023013,3]
[380558106,1755808270858,-446.18415811,0.00023013,3]
[380558108,1755808270868,-763.78,0.00023013,3]
[380558110,1755808270877,-1230.62,0.00023013,3]
[380558112,1755808270886,-575.71,0.00023013,3]
[380558114,1755808270896,-314.46,0.00023013,3]
[380558116,1755808270905,-369.98598002,0.00023013,3]
[380558118,1755808270915,-480.0,0.00023013,3]
[380558120,1755808270925,-295.44337204,0.00023013,3]
[380558122,1755808270935,-979.98,0.00023013,3]
[380558124,1755808270944,-480.0,0.00023013,3]
[380558126,1755808270954,-502.39,0.00023013,3]
[380558128,1755808270963,-444.31522394,0.00023013,3]
[380558130,1755808270972,-2606.28,0.00023013,3]
[380558132,1755808270982,-480.0,0.00023013,3]
[380558134,1755808270992,-2231.79,0.00023013,3]
[380558136,1755808271002,-685.12,0.00023013,3]
[380558138,1755808271011,-947.83,0.00023013,3]
[380558140,1755808271020,-764.17,0.00023013,3]
[380558142,1755808271030,-704.07,0.00023013,3]
[380558144,1755808271039,-480.0,0.00023013,3]
[380558145,1755808271048,-905.55,0.00023013,3]
[380558148,1755808271059,-1859.19,0.00023013,3]
[380558150,1755808271068,-1348.71,0.00023013,3]
[380558152,1755808271077,-1068.04,0.00023013,3]
[380558154,1755808271087,-1092.9,0.00023013,3]
[380558156,1755808271097,-1639.18,0.00023013,3]
[380558158,1755808271106,-4632.7,0.00023013,3]
[380558160,1755808271116,-480.0,0.00023013,3]
[380558162,1755808271125,-871.0,0.00023013,3]
[380558164,1755808271135,-1839.51,0.00023013,3]
[380558166,1755808271144,-943.69,0.00023013,3]
[380558168,1755808271154,-1279.12,0.00023013,3]
[380558169,1755808271163,-500.19,0.00023013,3]
[380558171,1755808271174,-644.77,0.00023013,3]
[380558173,1755808271185,-7368.41,0.00023013,3]
[380558175,1755808271195,-904.57,0.00023013,3]
[380558176,1755808271205,-2226.97,0.00023013,3]
[380558177,1755808271215,-589.33,0.00023013,3]
[380558178,1755808271225,-2931.52,0.00023013,3]
[380558179,1755808271234,-1477.5,0.00023013,3]
[380558180,1755808271243,-3237.28,0.00023013,3]
[380558181,1755808271253,-2381.45,0.00023013,3]
[380558182,1755808271262,-548.56,0.00023013,3]
[380558183,1755808271271,-480.0,0.00023013,3]
[380558184,1755808271281,-7210.24,0.00023013,3]
[380558185,1755808271290,-480.0,0.00023013,3]
[380558186,1755808271300,-480.0,0.00023013,3]
[380558189,1755808271309,-494.32,0.00023013,3]
[380558191,1755808271319,-804.93,0.00023013,3]
[380558193,1755808271328,-685.15,0.00023013,3]
[380558195,1755808271338,-1714.15,0.00023013,3]
[380558197,1755808271347,-480.0,0.00023013,3]
[380558198,1755808271357,-480.0,0.00023013,3]
[380558201,1755808271366,-2021.04,0.00023013,3]
[380558203,1755808271375,-4624.04,0.00023013,3]
[380558204,1755808271385,-697.43,0.00023013,3]
[380558206,1755808271395,-480.0,0.00023013,3]
[380558208,1755808271404,-850.67,0.00023013,3]
[380558210,1755808271414,-2191.48,0.00023013,3]
[380558212,1755808271423,-486.66,0.00023013,3]
[380558215,1755808271435,-676.79,0.00023013,3]
[380558216,1755808271445,-165.0,0.00023014,7]
[380558218,1755808271455,-955.0,0.00023014,2]
[380558220,1755808271464,-1000.0,0.0002306,2]
[380558222,1755808271474,-2818.33680489,0.00023074,2]
[380558225,1755808271484,-151.0,0.000231,7]
[380558227,1755808271494,-2529.11,0.000232,7]
[380558229,1755808271503,-19438.54484551,0.000232,2]
[380558252,1755808271722,-26887.52515449,0.000232,2]
[380558254,1755808271731,-151.0,0.000232,7]
[380558256,1755808271740,-151.0,0.000232,7]
[380558258,1755808271750,-152.58231,0.0002325,7]
[380558260,1755808271761,-4000.0,0.00023263,4]
[380558262,1755808271778,-152.58231,0.00023266,3]
[380558264,1755808271787,-956.81,0.00023287,3]
[380558266,1755808271797,-480.0,0.00023287,3]
[380558268,1755808271807,-968.44,0.00023287,3]
[380558270,1755808271816,-969.14,0.00023287,3]
[380558271,1755808271825,-480.0,0.00023287,3]
[380558273,1755808271834,-763.78,0.00023287,3]
[380558275,1755808271844,-1230.62,0.00023287,3]
[380558277,1755808271853,-575.71,0.00023287,3]
[380558279,1755808271862,-480.0,0.00023287,3]
[380558281,1755808271872,-979.98,0.00023287,3]
[380558284,1755808271882,-480.0,0.00023287,3]
[380558285,1755808271892,-502.39,0.00023287,3]
[380558287,1755808271902,-2606.28,0.00023287,3]
[380558289,1755808271911,-480.0,0.00023287,3]
[380558291,1755808271921,-685.12,0.00023287,3]
[380558293,1755808271930,-2231.79,0.00023287,3]
[380558295,1755808271940,-947.83,0.00023287,3]
[380558297,1755808271949,-764.17,0.00023287,3]
[380558299,1755808271958,-704.07,0.00023287,3]
[380558301,1755808271967,-480.0,0.00023287,3]
[380558303,1755808271976,-905.55,0.00023287,3]
[380558305,1755808271985,-1859.19,0.00023287,3]
[380558307,1755808271994,-1348.71,0.00023287,3]
[380558309,1755808272003,-1068.04,0.00023287,3]
[380558311,1755808272013,-1092.9,0.00023287,3]
[380558313,1755808272022,-1639.18,0.00023287,3]
[380558315,1755808272031,-4632.7,0.00023287,3]
[380558317,1755808272041,-480.0,0.00023287,3]
[380558319,1755808272051,-871.0,0.00023287,3]
[380558321,1755808272060,-1839.51,0.00023287,3]
[380558323,1755808272069,-943.69,0.00023287,3]
[380558325,1755808272079,-1279.12,0.00023287,3]
[380558327,1755808272088,-500.19,0.00023287,3]
[380558329,1755808272097,-644.77,0.00023287,3]
[380558331,1755808272107,-7368.41,0.00023287,3]
[380558333,1755808272117,-904.57,0.00023287,3]
[380558335,1755808272127,-2226.97,0.00023287,3]
[380558337,1755808272136,-589.33,0.00023287,3]
[380558339,1755808272145,-2931.52,0.00023287,3]
[380558341,1755808272155,-1477.5,0.00023287,3]
[380558343,1755808272164,-3237.28,0.00023287,3]
[380558345,1755808272174,-2381.45,0.00023287,3]
[380558347,1755808272183,-548.56,0.00023287,3]
[380558350,1755808272192,-480.0,0.00023287,3]
[380558352,1755808272202,-7210.24,0.00023287,3]
[380558354,1755808272211,-480.0,0.00023287,3]
[380558356,1755808272221,-480.0,0.00023287,3]
[380558357,1755808272230,-494.32,0.00023287,3]
[380558360,1755808272240,-804.93,0.00023287,3]
[380558362,1755808272250,-685.15,0.00023287,3]
[380558363,1755808272260,-1714.15,0.00023287,3]
[380558365,1755808272269,-480.0,0.00023287,3]
[380558367,1755808272279,-480.0,0.00023287,3]
[380558369,1755808272288,-2021.04,0.00023287,3]
[380558371,1755808272298,-4624.04,0.00023287,3]
[380558373,1755808272307,-697.43,0.00023287,3]
[380558375,1755808272317,-480.0,0.00023287,3]
[380558378,1755808272326,-850.67,0.00023287,3]
[380558380,1755808272335,-2191.48,0.00023287,3]
[380558381,1755808272345,-486.66,0.00023287,3]
[380558383,1755808272360,-676.79,0.00023287,3]
[380558385,1755808272369,-955.0,0.00023288,2]
[380558387,1755808272379,-1000.0,0.000233,2]
[380558389,1755808272389,-2285.55955501,0.00023308,2]
[380558391,1755808272399,-4131.32184527,0.00023308,2]
[380558393,1755808272410,-203.370422,0.00023317,7]
[380558395,1755808272419,-450.0,0.00023394,2]
[380558397,1755808272430,-660.0,0.000234,2]
[380558399,1755808272447,-3000.0,0.00023412,2]
[380558401,1755808272457,-202.0,0.0002345,7]
[380558403,1755808272466,-151.0,0.000235,7]
[380558405,1755808272477,-403.25,0.000235,7]
[380558407,1755808272495,-6420.47,0.000235,7]
[380558409,1755808272505,-151.0,0.00023506,7]
[380558411,1755808272515,-800.0,0.0002355,2]
[380558413,1755808272524,-956.81,0.00023561,3]
[380558415,1755808272534,-480.0,0.00023561,3]
[380558417,1755808272544,-968.44,0.00023561,3]
[380558419,1755808272554,-969.14,0.00023561,3]
[380558421,1755808272563,-480.0,0.00023561,3]
[380558423,1755808272573,-763.78,0.00023561,3]
[380558425,1755808272582,-1230.62,0.00023561,3]
[380558427,1755808272591,-575.71,0.00023561,3]
[380558430,1755808272604,-480.0,0.00023561,3]
[380558432,1755808272612,-979.98,0.00023561,3]
[380558434,1755808272621,-200.0,0.00023561,2]
[380558436,1755808272631,-200.0,0.00023561,2]
[380558438,1755808272640,-200.0,0.00023561,2]
[380558440,1755808272650,-200.0,0.00023561,2]
[380558442,1755808272660,-200.0,0.00023561,2]
[380558444,1755808272669,-200.0,0.00023561,2]
[380558446,1755808272678,-200.0,0.00023561,2]
[380558448,1755808272687,-200.0,0.00023561,2]
[380558449,1755808272697,-480.0,0.00023561,3]
[380558452,1755808272706,-200.0,0.00023561,2]
[380558454,1755808272715,-200.0,0.00023561,2]
[380558456,1755808272724,-332.12173829,0.00023561,2]
[380558458,1755808272734,-502.39,0.00023561,3]
[380558460,1755808272743,-2606.28,0.00023561,3]
[380558462,1755808272752,-480.0,0.00023561,3]
[380558464,1755808272760,-685.12,0.00023561,3]
[380558465,1755808272770,-2231.79,0.00023561,3]
[380558467,1755808272779,-947.83,0.00023561,3]
[380558469,1755808272788,-764.17,0.00023561,3]
[380558472,1755808272797,-704.07,0.00023561,3]
[380558474,1755808272806,-480.0,0.00023561,3]
[380558476,1755808272816,-905.55,0.00023561,3]
[380558478,1755808272828,-1859.19,0.00023561,3]
[380558480,1755808272838,-1348.71,0.00023561,3]
[380558481,1755808272847,-1068.04,0.00023561,3]
[380558483,1755808272856,-1092.9,0.00023561,3]
[380558485,1755808272866,-1639.18,0.00023561,3]
[380558487,1755808272875,-4632.7,0.00023561,3]
[380558489,1755808272884,-480.0,0.00023561,3]
[380558491,1755808272894,-871.0,0.00023561,3]
[380558493,1755808272902,-1839.51,0.00023561,3]
[380558495,1755808272912,-943.69,0.00023561,3]
[380558497,1755808272921,-1279.12,0.00023561,3]
[380558499,1755808272930,-500.19,0.00023561,3]
[380558501,1755808272944,-644.77,0.00023561,3]
[380558503,1755808272956,-7368.41,0.00023561,3]
[380558505,1755808272966,-904.57,0.00023561,3]
[380558507,1755808272975,-2226.97,0.00023561,3]
[380558509,1755808272985,-589.33,0.00023561,3]
[380558511,1755808272995,-2931.52,0.00023561,3]
[380558514,1755808273004,-1477.5,0.00023561,3]
[380558515,1755808273014,-3237.28,0.00023561,3]
[380558517,1755808273023,-2381.45,0.00023561,3]
[380558519,1755808273032,-548.56,0.00023561,3]
[380558521,1755808273041,-480.0,0.00023561,3]
[380558524,1755808273051,-7210.24,0.00023561,3]
[380558525,1755808273060,-480.0,0.00023561,3]
[380558527,1755808273071,-480.0,0.00023561,3]
[380558529,1755808273085,-494.32,0.00023561,3]
[380558531,1755808273095,-804.93,0.00023561,3]
[380558533,1755808273104,-685.15,0.00023561,3]
[380558535,1755808273114,-1714.15,0.00023561,3]
[380558537,1755808273123,-480.0,0.00023561,3]
[380558540,1755808273132,-480.0,0.00023561,3]
[380558541,1755808273141,-2021.04,0.00023561,3]
[380558544,1755808273151,-4624.04,0.00023561,3]
[380558554,1755808273241,-697.43,0.00023561,3]
[380558556,1755808273251,-480.0,0.00023561,3]
[380558558,1755808273260,-850.67,0.00023561,3]
[380558560,1755808273269,-2191.48,0.00023561,3]
[380558562,1755808273278,-486.66,0.00023561,3]
[380558564,1755808273288,-676.79,0.00023561,3]
[380558566,1755808273297,-955.0,0.00023562,2]
[380558568,1755808273306,-800.0,0.00023577,2]
[380558570,1755808273315,-528.88070896,0.000236,7]
[380558572,1755808273324,-417.15472785,0.000236,7]
[380558574,1755808273334,-800.0,0.00023603,2]
[380558576,1755808273343,-188.9947007,0.00023612,2]
[380558578,1755808273353,-566.9841015,0.00023615,2]
[380558580,1755808273362,-800.0,0.00023631,2]
[380558582,1755808273371,-800.0,0.00023635,2]
[380558584,1755808273380,-8746.95122769,0.00023642,2]
[380558586,1755808273389,-800.0,0.00023676,2]
[380558588,1755808273398,-800.0,0.00023682,2]
[380558590,1755808273407,-800.0,0.00023713,2]
[380558592,1755808273416,-800.0,0.0002374,2]
[380558594,1755808273425,-800.0,0.00023776,2]
[380558596,1755808273437,-152.58231,0.00023779,7]
[380558598,1755808273448,-800.0,0.00023779,2]
[380558600,1755808273457,-800.0,0.00023783,2]
[380558602,1755808273466,-151.0,0.000238,10]
[380558604,1755808273476,-1000.0,0.000238,2]
[380558606,1755808273486,-152.58231,0.00023804,3]
[380558608,1755808273496,-151.0,0.00023835,7]
[380558610,1755808273505,-151.0,0.00023835,7]
[380558613,1755808273517,-151.0,0.00023835,7]
[380558615,1755808273526,-956.81,0.00023835,3]
[380558617,1755808273535,-480.0,0.00023835,3]
[380558618,1755808273545,-968.44,0.00023835,3]
[380558620,1755808273554,-969.14,0.00023835,3]
[380558622,1755808273563,-446.74,0.00023835,3]
[380558625,1755808273573,-763.78,0.00023835,3]
[380558627,1755808273582,-1230.62,0.00023835,3]
[380558628,1755808273591,-575.71,0.00023835,3]
[380558630,1755808273600,-480.0,0.00023835,3]
[380558633,1755808273609,-979.98,0.00023835,3]
[380558635,1755808273619,-170.93,0.00023835,3]
[380558637,1755808273629,-502.39,0.00023835,3]
[380558638,1755808273638,-2606.28,0.00023835,3]
[380558639,1755808273647,-480.0,0.00023835,3]
[380558641,1755808273656,-685.12,0.00023835,3]
[380558643,1755808273665,-2231.79,0.00023835,3]
[380558645,1755808273675,-947.83,0.00023835,3]
[380558647,1755808273685,-764.17,0.00023835,3]
[380558649,1755808273694,-704.07,0.00023835,3]
[380558651,1755808273703,-480.0,0.00023835,3]
[380558653,1755808273712,-905.55,0.00023835,3]
[380558655,1755808273721,-1859.19,0.00023835,3]
[380558657,1755808273731,-1348.71,0.00023835,3]
[380558659,1755808273739,-1068.04,0.00023835,3]
[380558661,1755808273748,-1092.9,0.00023835,3]
[380558663,1755808273758,-1639.18,0.00023835,3]
[380558665,1755808273767,-4632.7,0.00023835,3]
[380558667,1755808273776,-480.0,0.00023835,3]
[380558669,1755808273785,-871.0,0.00023835,3]
[380558671,1755808273794,-1839.51,0.00023835,3]
[380558673,1755808273803,-943.69,0.00023835,3]
[380558674,1755808273812,-1279.12,0.00023835,3]
[380558676,1755808273822,-500.19,0.00023835,3]
[380558678,1755808273831,-644.77,0.00023835,3]
[380558680,1755808273840,-3204.02238788,0.00023835,3]
[380558683,1755808273854,-1339.80346638,0.00023835,3]
[380558685,1755808273865,-366.65693215,0.00023835,3]
[380558688,1755808273883,-480.0,0.00019178,2]
[380558690,1755808273892,-836.39,0.00021095,2]
[380558692,1755808273902,-641.73217936,0.00023835,3]
[380558694,1755808273912,-1500.0,0.00023835,3]
[380558712,1755808274082,-480.0,0.00019178,2]
[380558714,1755808274091,-480.0,0.00019178,2]
[380558716,1755808274101,-480.0,0.00019452,2]
[380558718,1755808274110,-480.0,0.00019452,2]
[380558720,1755808274120,-480.0,0.00019726,2]
[380558722,1755808274129,-480.0,0.0002,2]
[380558724,1755808274138,-480.0,0.0002,2]
[380558726,1755808274148,-528.88070896,0.00020059,2]
[380558728,1755808274158,-480.0,0.00020273,2]
[380558730,1755808274167,-480.0,0.00020273,2]
[380558732,1755808274175,-480.0,0.00020547,2]
[380558734,1755808274185,-480.0,0.00020547,2]
[380558736,1755808274195,-480.0,0.00020821,2]
[380558738,1755808274204,-426.0217136,0.00020821,2]
[380558740,1755808274213,-480.0,0.00021095,2]
[380558742,1755808274223,-836.39,0.00021369,2]
[380558744,1755808274232,-480.0,0.00021369,2]
[380558746,1755808274241,-836.39,0.00021643,2]
[380558748,1755808274250,-480.0,0.00021643,2]
[380558750,1755808274260,-836.39,0.00021917,2]
[380558752,1755808274269,-542.51,0.00021917,2]
[380558754,1755808274278,-836.39,0.00022191,3]
[380558756,1755808274287,-836.39,0.00022465,3]
[380558758,1755808274297,-836.39,0.00022739,3]
[380558760,1755808274306,-836.39,0.00023013,3]
[380558762,1755808274315,-836.39,0.00023287,3]
[380558764,1755808274324,-836.39,0.00023561,3]
[380558766,1755808274333,-316.19503423,0.00023835,3]
[380558768,1755808274344,-904.57,0.00023835,3]
[380558770,1755808274353,-2226.97,0.00023835,3]
[380558772,1755808274363,-589.33,0.00023835,3]
[380558774,1755808274372,-2931.52,0.00023835,3]
[380558776,1755808274381,-1477.5,0.00023835,3]
[380558778,1755808274390,-3237.28,0.00023835,3]
[380558780,1755808274399,-2381.45,0.00023835,3]
[380558782,1755808274408,-548.56,0.00023835,3]
[380558784,1755808274417,-480.0,0.00023835,3]
[380558786,1755808274429,-7210.24,0.00023835,3]
[380558788,1755808274441,-480.0,0.00023835,3]
[380558789,1755808274450,-480.0,0.00023835,3]
[380558791,1755808274459,-494.32,0.00023835,3]
[380558793,1755808274468,-804.93,0.00023835,3]
[380558795,1755808274478,-685.15,0.00023835,3]
[380558797,1755808274487,-1714.15,0.00023835,3]
[380558799,1755808274497,-583.43,0.00023835,3]
[380558801,1755808274508,-480.0,0.00023835,3]
[380558803,1755808274518,-2021.04,0.00023835,3]
[380558805,1755808274530,-4624.04,0.00023835,3]
[380558807,1755808274539,-697.43,0.00023835,3]
[380558817,1755808274628,-480.0,0.00023835,3]
[380558819,1755808274638,-850.67,0.00023835,3]
[380558821,1755808274647,-2191.48,0.00023835,3]
[380558823,1755808274657,-486.66,0.00023835,3]
[380558825,1755808274667,-676.79,0.00023835,3]
[380558827,1755808274677,-836.39,0.00023835,3]
[380558829,1755808274690,-955.0,0.00023836,2]
[380558831,1755808274701,-306.0,0.00023846,2]
[380558833,1755808274710,-153.0,0.00023846,2]
[380558835,1755808274719,-153.0,0.00023846,2]
[380558837,1755808274728,-1054.11254381,0.00023865,2]
[380558839,1755808274737,-152.58231,0.00023869,2]
[380558841,1755808274747,-151.0,0.00023926,2]
[380558843,1755808274755,-760.0,0.00023948,2]
[380558845,1755808274764,-152.58231,0.00023952,28]
[380558847,1755808274775,-3500.0,0.0002396,2]
[380558849,1755808274785,-160.0,0.00024,7]
[380558851,1755808274794,-216.95272161,0.00024,7]
[380558853,1755808274803,-232.28399145,0.00024,7]
[380558855,1755808274812,-160.0,0.00024,7]
[380558857,1755808274822,-160.0,0.00024,7]
[380558858,1755808274833,-844.19128999,0.00024,7]
[380558860,1755808274842,-160.0,0.00024,7]
[380558862,1755808274851,-152.58231,0.00024083,28]
[380558864,1755808274860,-956.81,0.00024109,3]
[380558866,1755808274869,-151.0,0.00024109,7]
[380558868,1755808274878,-480.0,0.00024109,3]
[380558870,1755808274888,-968.44,0.00024109,3]
[380558872,1755808274897,-969.14,0.00024109,3]
[380558874,1755808274907,-763.78,0.00024109,3]
[380558876,1755808274916,-1230.62,0.00024109,3]
[380558878,1755808274925,-575.71,0.00024109,3]
[380558880,1755808274936,-480.0,0.00024109,3]
[380558882,1755808274945,-979.98,0.00024109,3]
[380558884,1755808274954,-502.39,0.00024109,3]
[380558886,1755808274963,-2606.28,0.00024109,3]
[380558887,1755808274972,-480.0,0.00024109,3]
[380558889,1755808274982,-685.12,0.00024109,3]
[380558891,1755808274991,-2231.79,0.00024109,3]
[380558893,1755808275000,-947.83,0.00024109,3]
[380558895,1755808275010,-764.17,0.00024109,3]
[380558897,1755808275019,-704.07,0.00024109,3]
[380558899,1755808275029,-480.0,0.00024109,3]
[380558901,1755808275039,-905.55,0.00024109,3]
[380558903,1755808275048,-1859.19,0.00024109,3]
[380558905,1755808275057,-1348.71,0.00024109,3]
[380558907,1755808275066,-1068.04,0.00024109,3]
[380558909,1755808275076,-8728.7,0.00024109,4]
[380558911,1755808275086,-1092.9,0.00024109,3]
[380558912,1755808275096,-1639.18,0.00024109,3]
[380558914,1755808275105,-4632.7,0.00024109,3]
[380558916,1755808275115,-480.0,0.00024109,3]
[380558918,1755808275124,-871.0,0.00024109,3]
[380558920,1755808275134,-1839.51,0.00024109,3]
[380558922,1755808275143,-943.69,0.00024109,3]
[380558924,1755808275152,-1279.12,0.00024109,3]
[380558926,1755808275161,-500.19,0.00024109,3]
[380558928,1755808275171,-644.77,0.00024109,3]
[380558930,1755808275180,-7368.41,0.00024109,3]
[380558932,1755808275190,-904.57,0.00024109,3]
[380558934,1755808275200,-2226.97,0.00024109,3]
[380558936,1755808275209,-589.33,0.00024109,3]
[380558938,1755808275219,-2931.52,0.00024109,3]
[380558940,1755808275228,-1477.5,0.00024109,3]
[380558942,1755808275237,-3237.28,0.00024109,3]
[380558944,1755808275247,-2381.45,0.00024109,3]
[380558946,1755808275257,-548.56,0.00024109,3]